lending/lending_fUSD_20240705
["ID","MTS","AMOUNT","RATE_DAILY","PERIOD"]
[331265160,1720168244208,-250.0,0.00015808,2]
[331265161,1720168244219,-1000.0,0.00015809,2]
[331265162,1720168244229,-250.0,0.00015852,2]
[331265163,1720168244239,-417.45,0.00015898,2]
[331265164,1720168244249,-150.0,0.00015902,2]
[331265165,1720168244259,-23900.0,0.0001593,2]
[331265166,1720168244269,-12782.05,0.00015956,2]
[331265167,1720168244280,-323.84826154,0.00016041,2]
[331265168,1720168244290,-2215.31957663,0.00016041,2]
[331265169,1720168244300,-420.0,0.00016199,2]
[331265170,1720168244310,-1760.19550154,0.000165,2]
[331265171,1720168244320,-162.17,0.00016712,2]
[331265172,1720168244330,-1951.37,0.00017128,2]
[331265173,1720168244343,-1920.4044,0.00017151,2]
[331265174,1720168244353,-323.84826154,0.00017183,2]
[331265175,1720168244363,-2215.31957663,0.00017183,2]
[331265176,1720168244373,-400.0,0.00017206,2]
[331265177,1720168244384,-152.35,0.00017257,2]
[331265178,1720168244395,-191.6866948,0.00017407,2]
[331265179,1720168244405,-189.898,0.00017417,2]
[331265180,1720168244415,-619.709,0.00017417,2]
[331265181,1720168244426,-444.0,0.00017417,2]
[331265182,1720168244436,-815.015,0.00017417,2]
[331265183,1720168244445,-449.0,0.00017417,2]
[331265184,1720168244455,-1305.0,0.00017417,2]
[331265185,1720168244465,-2375.0,0.00017417,2]
[331265186,1720168244476,-3224.0,0.00017417,2]
[331265187,1720168244486,-283.0,0.00017417,2]
[331265188,1720168244496,-1988.0,0.00017417,2]
[331265189,1720168244506,-548.0,0.00017417,2]
[331265190,1720168244516,-291.0,0.00017417,2]
[331265191,1720168244525,-902.917,0.00017417,2]
[331265192,1720168244535,-5811.0,0.00017417,2]
[331265193,1720168244550,-1830.0,0.00017417,2]
[331265194,1720168244560,-5177.0,0.00017417,2]
[331265195,1720168244570,-38243.0,0.00017417,2]
[331265196,1720168244580,-1664.0,0.00017417,2]
[331265197,1720168244590,-1199.0,0.00017417,2]
[331265198,1720168244600,-1658.0,0.00017417,2]
[331265199,1720168244610,-2775.68967099,0.00017606,2]
[331265200,1720168244620,-587.0,0.00017732,2]
[331265201,1720168244631,-1000.0,0.00017785,2]
[331265202,1720168244642,-1006.5851,0.00017804,2]
[331265203,1720168244653,-235.759,0.00017868,2]
[331265204,1720168244665,-192.40825381,0.00017899,2]
[331265205,1720168244676,-9230.13856798,0.000179,2]
[331265206,1720168244686,-178.61051209,0.000179,2]
[331265207,1720168244696,-227.17477303,0.00017999,2]
[331265208,1720168244707,-370.76260341,0.00018,2]
[331265209,1720168244720,-595.0,0.00018,3]
[331265210,1720168244730,-1250.0,0.00018,3]
[331265211,1720168244740,-227.17477303,0.00018081,2]
[331265212,1720168244750,-150.0,0.00018167,2]
[331265213,1720168244759,-150.125,0.00018167,2]
[331265214,1720168244769,-152.729,0.00018167,2]
[331265215,1720168244782,-150.307,0.00018167,2]
[331265216,1720168244792,-150.446,0.00018167,2]
[331265217,1720168244803,-323.84826154,0.00018324,2]
[331265218,1720168244813,-2215.31957663,0.00018324,2]
[331265219,1720168244824,-9230.13856793,0.00018354,2]
[331265220,1720168244835,-1754.0,0.00018393,2]
[331265221,1720168244845,-150.0,0.0001855,2]
[331265222,1720168244857,-150.0,0.00018592,2]
[331265223,1720168244868,-235.759,0.00018806,2]
[331265224,1720168244879,-9230.13856793,0.00018807,2]
[331265225,1720168244890,-164.81,0.00018849,30]
[331265226,1720168244901,-150.83,0.000189,2]
[331265227,1720168244913,-150.83,0.000189,2]
[331265228,1720168244924,-5000.0,0.00019,2]
[331265229,1720168244934,-1250.0,0.00019,2]
[331265230,1720168244945,-192.40825381,0.00019147,2]
[331265231,1720168244956,-250.0,0.00019178,2]
[331265232,1720168244969,-9230.13856793,0.00019261,2]
[331265233,1720168244979,-400.0,0.00019357,2]
[331265234,1720168244989,-823.0,0.00019411,2]
[331265235,1720168244999,-323.84826154,0.00019466,2]
[331265236,1720168245009,-2215.31957663,0.00019466,2]
[331265237,1720168245020,-2500.0,0.000195,2]
[331265238,1720168245031,-9230.13856793,0.00019715,2]
[331265239,1720168245042,-1000.0,0.00019761,2]
[331265240,1720168245053,-150.83,0.0001978,2]
[331265241,1720168245063,-7927.0,0.0001979,2]
[331265242,1720168245078,-162.45757,0.000198,2]
[331265243,1720168245089,-151.0,0.000198,2]
[331265244,1720168245099,-151.0,0.000198,2]
[331265245,1720168245109,-500.0,0.000198,7]
[331265246,1720168245119,-400.0,0.000198,7]
[331265247,1720168245129,-235.759,0.00019843,2]
[331265248,1720168245140,-150.83,0.0001989,2]
[331265249,1720168245149,-150.83,0.0001989,2]
[331265250,1720168245159,-1492.0,0.0001989,2]
[331265251,1720168245169,-22623.0,0.0001989,2]
[331265252,1720168245178,-423.67666497,0.00019899,2]
[331265253,1720168245189,-166.50275554,0.00019899,2]
[331265254,1720168245200,-151.0,0.000199,2]
[331265255,1720168245210,-151.0,0.000199,2]
[331265256,1720168245222,-151.0,0.000199,2]
[331265257,1720168245232,-151.0,0.000199,2]
[331265258,1720168245242,-151.0,0.000199,2]
[331265259,1720168245252,-151.0,0.000199,2]
[331265260,1720168245262,-151.0,0.000199,2]
[331265261,1720168245272,-267.734024,0.000199,2]
[331265262,1720168245282,-151.0,0.000199,2]
[331265263,1720168245292,-151.0,0.000199,2]
[331265264,1720168245302,-151.0,0.000199,2]
[331265265,1720168245312,-151.0,0.000199,2]
[331265266,1720168245322,-151.0,0.000199,2]
[331265267,1720168245342,-151.0,0.000199,2]
[331265268,1720168245359,-151.0,0.000199,2]
[331265269,1720168245369,-151.0,0.000199,2]
[331265270,1720168245379,-43456.50337845,0.000199,3]
[331265274,1720168247070,-165530.77256824,0.000199,3]
[331265275,1720168247081,-1345.71476895,0.000199,3]
[331265276,1720168247093,-545.09591009,0.000199,3]
[331265277,1720168247104,-4356.85631999,0.000199,3]
[331265280,1720168247881,-1656.06206259,0.000199,3]
[331265281,1720168247894,-626.08111507,0.000199,3]
[331265285,1720168260134,154.026122,0.00031966,30]
[331265286,1720168260305,154.026122,0.00031966,30]
[331265290,1720168274253,200.0,0.00031966,30]
[331265291,1720168274333,200.0,0.00031966,30]
[331265292,1720168274718,203.388258,0.00031966,30]
[331265293,1720168340157,-668.7275497,0.00025,30]
[331265294,1720168340192,-668.7275497,0.00025,30]
[331265295,1720168340241,-164.81,0.00027982,30]
[331265296,1720168340287,-5236.78642013,0.0003,30]
[331265297,1720168340324,-381.39233305,0.0003,30]
[331265298,1720168340372,-1000.0,0.00030986,30]
[331265299,1720168340417,-1190.13223326,0.00031966,120]
[331265300,1720168340454,-1185.74717388,0.00031966,60]
[331265301,1720168340502,-609.99,0.00033151,120]
[331265302,1720168340539,-500.0,0.00034498,30]
[331265303,1720168340577,-500.0,0.00034498,30]
[331265304,1720168340612,-500.0,0.00034498,30]
[331265305,1720168340647,-500.0,0.00034498,30]
[331265306,1720168340684,-500.0,0.00034498,30]
[331265307,1720168340717,-500.0,0.00034498,30]
[331265308,1720168340752,-500.0,0.00034498,30]
[331265309,1720168340785,-500.0,0.00034498,30]
[331265310,1720168340826,-500.0,0.00034498,30]
[331265311,1720168340862,-500.0,0.00034498,30]
[331265312,1720168340899,-500.0,0.00034498,30]
[331265313,1720168340935,-500.0,0.00034498,30]
[331265314,1720168340970,-500.0,0.00034498,30]
[331265315,1720168341004,-500.0,0.00034498,30]
[331265316,1720168341040,-608.0,0.00034498,30]
[331265317,1720168341082,-164.81,0.00037114,30]
[331265318,1720168341118,-154.026122,0.000383,36]
[331265319,1720168341155,-453.5252403,0.00039,120]
[331265320,1720168341194,-151.0,0.0004,120]
[331265321,1720168341230,-151.0,0.00040712,120]
[331265322,1720168341267,-151.0,0.00041425,120]
[331265323,1720168341303,-2314990.2600461,0.0004198,30]
[331265324,1720168341339,-606.53708073,0.0004198,120]
[331265325,1720168341382,-151.0,0.00042137,120]
[331265326,1720168341420,-152.0,0.00042656,31]
[331265327,1720168341460,-151.0,0.00042849,120]
[331265328,1720168341497,-152.0,0.00043263,31]
[331265329,1720168341534,-151.0,0.00043562,120]
[331265330,1720168341572,-867.44,0.00043835,120]
[331265331,1720168341611,-152.0,0.00043869,31]
[331265332,1720168341649,-655.043625,0.00044,57]
[331265333,1720168341685,-151.0,0.00044274,120]
[331265334,1720168341720,-253.14,0.0004438,120]
[331265335,1720168341758,-176.38877375,0.0004438,120]
[331265336,1720168341795,-176.38877375,0.0004438,120]
[331265337,1720168341832,-176.38877375,0.0004438,120]
[331265338,1720168341870,-176.38877375,0.0004438,120]
[331265339,1720168341906,-176.38877375,0.0004438,120]
[331265340,1720168341944,-176.38877375,0.0004438,120]
[331265341,1720168341982,-176.38877375,0.0004438,120]
[331265342,1720168342021,-176.38877375,0.0004438,120]
[331265343,1720168342056,-176.38877375,0.0004438,120]
[331265344,1720168342090,-176.38877375,0.0004438,120]
[331265345,1720168342123,-176.38877375,0.0004438,120]
[331265346,1720168342156,-176.38877375,0.0004438,120]
[331265347,1720168342191,-176.38877375,0.0004438,120]
[331265348,1720168342226,-176.38877375,0.0004438,120]
[331265349,1720168342259,-176.38877375,0.0004438,120]
[331265350,1720168342293,-176.38877375,0.0004438,120]
[331265351,1720168342328,-176.38877375,0.0004438,120]
[331265352,1720168342364,-176.38877375,0.0004438,120]
[331265353,1720168342405,-176.38877375,0.0004438,120]
[331265354,1720168342440,-176.88,0.0004438,120]
[331265355,1720168342475,-154.00156634,0.0004438,120]
[331265356,1720168342508,-154.00156634,0.0004438,120]
[331265357,1720168342699,-154.00156634,0.0004438,120]
[331265358,1720168342735,-154.00156634,0.0004438,120]
[331265359,1720168342772,-154.00156634,0.0004438,120]
[331265360,1720168342811,-154.00156634,0.0004438,120]
[331265361,1720168342853,-154.00156634,0.0004438,120]
[331265362,1720168342891,-154.00156634,0.0004438,120]
[331265363,1720168342930,-154.00156634,0.0004438,120]
[331265364,1720168342966,-154.00156634,0.0004438,120]
[331265365,1720168343003,-154.00156634,0.0004438,120]
[331265366,1720168343039,-154.00156634,0.0004438,120]
[331265367,1720168343078,-154.00156634,0.0004438,120]
[331265368,1720168343112,-154.00156634,0.0004438,120]
[331265369,1720168343149,-154.00156634,0.0004438,120]
[331265370,1720168343186,-154.00156634,0.0004438,120]
[331265371,1720168343223,-154.00156634,0.0004438,120]
[331265372,1720168343258,-154.00156634,0.0004438,120]
[331265373,1720168343294,-154.5,0.0004438,120]
[331265374,1720168343333,-198.05353407,0.0004438,120]
[331265375,1720168343371,-198.05353407,0.0004438,120]
[331265376,1720168343411,-198.05353407,0.0004438,120]
[331265377,1720168343449,-198.05353407,0.0004438,120]
[331265378,1720168343487,-198.05353407,0.0004438,120]
[331265379,1720168343523,-198.05353407,0.0004438,120]
[331265380,1720168343558,-198.05353407,0.0004438,120]
[331265381,1720168343594,-198.05353407,0.0004438,120]
[331265382,1720168343631,-198.05353407,0.0004438,120]
[331265383,1720168343668,-198.05353407,0.0004438,120]
[331265384,1720168343705,-198.05353407,0.0004438,120]
[331265385,1720168343742,-198.05353407,0.0004438,120]
[331265386,1720168343778,-198.05353407,0.0004438,120]
[331265387,1720168343815,-198.05353407,0.0004438,120]
[331265388,1720168343853,-198.05353407,0.0004438,120]
[331265389,1720168343891,-198.05353407,0.0004438,120]
[331265390,1720168343932,-198.05353407,0.0004438,120]
[331265391,1720168343971,-198.05353407,0.0004438,120]
[331265392,1720168344008,-198.05353407,0.0004438,120]
[331265393,1720168344046,-198.55,0.0004438,120]
[331265394,1720168344090,-867.44,0.00044383,120]
[331265395,1720168344129,-609.99,0.00044384,120]
[331265396,1720168344167,-152.0,0.00044476,31]
[331265397,1720168344204,-1040.0,0.0004463,30]
[331265398,1720168344243,-867.44,0.00044931,120]
[331265399,1720168344285,-151.0,0.00044986,120]
[331265400,1720168344325,-213.02852546,0.00045028,40]
[331265401,1720168344362,-206.96298539,0.00045028,40]
[331265402,1720168344404,-275.75808549,0.00045028,40]
[331265403,1720168344442,-152.0,0.00045083,31]
[331265404,1720168344478,-250.8397,0.0004514,30]
[331265405,1720168344517,-867.44,0.00045479,120]
[331265406,1720168344554,-191.0,0.000455,33]
[331265407,1720168344590,-152.0,0.0004569,31]
[331265408,1720168344627,-151.0,0.00045699,120]
[331265409,1720168344662,-1000.0,0.000457,30]
[331265410,1720168344698,-225.0,0.000457,30]
[331265411,1720168344735,-950.7,0.000457,30]
[331265412,1720168344771,-867.44,0.00046027,120]
[331265413,1720168344806,-164.81,0.00046247,120]
[331265414,1720168344847,-500.0,0.000463,30]
[331265415,1720168344883,-156.8197,0.00046389,30]
[331265416,1720168344923,-151.0,0.00046411,120]
[331265417,1720168344961,-154.026122,0.000465,58]
[331265418,1720168344999,-867.44,0.00046575,120]
[331265419,1720168345037,-500.0,0.00046848,30]
[331265420,1720168345077,-1040.0,0.00046979,30]
[331265421,1720168345116,-867.44,0.00047123,120]
[331265422,1720168345155,-151.0,0.00047123,120]
[331265423,1720168345195,-500.0,0.00047396,30]
[331265424,1720168345241,-150.0,0.00047537,120]
[331265425,1720168345285,-900.0,0.0004767,30]
[331265426,1720168345334,-500.0,0.0004767,30]
[331265427,1720168345378,-867.44,0.00047671,120]
[331265428,1720168345419,-151.0,0.00047836,120]
[331265429,1720168345458,-500.0,0.00047944,30]
[331265430,1720168345495,-900.0,0.00047944,30]
[331265431,1720168345541,-900.0,0.00048218,30]
[331265432,1720168345587,-500.0,0.00048218,30]
[331265433,1720168345627,-867.44,0.00048219,120]
[331265434,1720168345667,-500.0,0.00048492,30]
[331265435,1720168345708,-900.0,0.00048492,30]
[331265436,1720168345751,-151.0,0.00048548,120]
[331265437,1720168345788,-1010.46,0.000487,31]
[331265438,1720168345830,-500.0,0.00048766,30]
[331265439,1720168345870,-900.0,0.00048766,30]
[331265440,1720168345912,-867.44,0.00048767,120]
[331265441,1720168345952,-2076.32914725,0.000488,90]
[331265442,1720168345992,-236.37275478,0.000489,120]
[331265443,1720168346031,-900.0,0.0004904,30]
[331265444,1720168346070,-500.0,0.0004904,30]
[331265445,1720168346107,-151.0,0.0004926,120]
[331265446,1720168346144,-556.54669527,0.00049314,90]
[331265447,1720168346180,-421.36565373,0.00049315,120]
[331265448,1720168346217,-867.44,0.00049315,120]
[331265449,1720168346255,-1040.0,0.00049452,30]
[331265450,1720168346291,-900.0,0.00049588,90]
[331265451,1720168346327,-500.0,0.00049588,90]
[331265452,1720168346366,-1010.46,0.0004984,40]
[331265453,1720168346409,-867.44,0.00049863,120]
[331265454,1720168346446,-10109.57214319,0.000499,120]
[331265455,1720168346481,-200.0,0.000499,120]
[331265456,1720168346518,-151.0,0.00049973,120]
[331265457,1720168346557,-200.0,0.0005,120]
[331265458,1720168346592,-200.0,0.0005,120]
[331265459,1720168346628,-200.0,0.0005,120]
[331265460,1720168346798,-900.0,0.00050136,90]
[331265461,1720168346839,-500.0,0.00050136,90]
[331265462,1720168346875,-867.44,0.0005041,120]
[331265463,1720168346914,-900.0,0.00050684,90]
[331265464,1720168346953,-500.0,0.00050684,90]
[331265465,1720168346989,-151.0,0.00050685,120]
[331265466,1720168347029,-867.44,0.00050958,120]
[331265467,1720168347066,-1010.46,0.0005098,49]
[331265468,1720168347104,-900.0,0.00051232,90]
[331265469,1720168347141,-451.08152372,0.00051232,90]
[331265470,1720168347180,-151.0,0.00051397,120]
[331265471,1720168347218,-867.44,0.00051506,120]
[331265472,1720168347256,-900.0,0.0005178,90]
[331265473,1720168347295,-150.0,0.00052032,120]
[331265474,1720168347335,-867.44,0.00052054,120]
[331265475,1720168347371,-1040.0,0.00052054,30]
[331265476,1720168347410,-151.0,0.0005211,120]
[331265477,1720168347448,-1010.46,0.0005212,58]
[331265478,1720168347486,-900.0,0.00052328,90]
[331265479,1720168347523,-867.44,0.00052602,120]
[331265480,1720168347561,-500.0,0.00052602,30]
[331265481,1720168347597,-500.0,0.00052602,30]
[331265482,1720168347634,-500.0,0.00052602,30]
[331265483,1720168347671,-500.0,0.00052602,30]
[331265484,1720168347709,-500.0,0.00052602,30]
[331265485,1720168347745,-500.0,0.00052602,30]
[331265486,1720168347783,-500.0,0.00052602,30]
[331265487,1720168347824,-500.0,0.00052602,30]
[331265488,1720168347863,-500.0,0.00052602,30]
[331265489,1720168347903,-500.0,0.00052602,30]
[331265490,1720168347943,-500.0,0.00052602,30]
[331265491,1720168347981,-500.0,0.00052602,30]
[331265492,1720168348019,-500.0,0.00052602,30]
[331265493,1720168348059,-500.0,0.00052602,30]
[331265494,1720168348097,-500.0,0.00052602,30]
[331265495,1720168348133,-500.0,0.00052602,30]
[331265496,1720168348171,-500.0,0.00052602,30]
[331265497,1720168348206,-500.0,0.00052602,30]
[331265498,1720168348245,-500.0,0.00052602,30]
[331265499,1720168348282,-500.0,0.00052602,30]
[331265500,1720168348321,-500.0,0.00052602,30]
[331265501,1720168348360,-500.0,0.00052602,30]
[331265502,1720168348404,-500.0,0.00052602,30]
[331265503,1720168348443,-500.0,0.00052602,30]
[331265504,1720168348480,-500.0,0.00052602,30]
[331265505,1720168348518,-500.0,0.00052602,30]
[331265506,1720168348561,-500.0,0.00052602,30]
[331265507,1720168348599,-500.0,0.00052602,30]
[331265508,1720168348637,-500.0,0.00052602,30]
[331265509,1720168348675,-500.0,0.00052602,30]
[331265510,1720168348713,-500.0,0.00052602,30]
[331265511,1720168348751,-500.0,0.00052602,30]
[331265512,1720168348790,-500.0,0.00052602,30]
[331265513,1720168348832,-500.0,0.00052602,30]
[331265514,1720168348872,-500.0,0.00052602,30]
[331265515,1720168348909,-500.0,0.00052602,30]
[331265516,1720168348948,-500.0,0.00052602,30]
[331265517,1720168348987,-500.0,0.00052602,30]
[331265518,1720168349023,-500.0,0.00052602,30]
[331265519,1720168349060,-622.57397628,0.00052602,30]
[331265520,1720168349099,-500.0,0.00052602,30]
[331265521,1720168349137,-500.0,0.00052602,30]
[331265522,1720168349175,-500.0,0.00052602,30]
[331265523,1720168349214,-500.0,0.00052602,30]
[331265524,1720168349251,-500.0,0.00052602,30]
[331265525,1720168349289,-500.0,0.00052602,30]
[331265526,1720168349330,-500.0,0.00052602,30]
[331265527,1720168349369,-500.0,0.00052602,30]
[331265528,1720168349410,-500.0,0.00052602,30]
[331265529,1720168349448,-500.0,0.00052602,30]
[331265530,1720168349486,-500.0,0.00052602,30]
[331265531,1720168349526,-500.0,0.00052602,30]
[331265532,1720168349565,-500.0,0.00052602,30]
[331265533,1720168349602,-500.0,0.00052602,30]
[331265534,1720168349642,-500.0,0.00052602,30]
[331265535,1720168349680,-500.0,0.00052602,30]
[331265536,1720168349718,-500.0,0.00052602,30]
[331265537,1720168349756,-500.0,0.00052602,30]
[331265538,1720168349796,-500.0,0.00052602,30]
[331265539,1720168349836,-500.0,0.00052602,30]
[331265540,1720168349877,-500.0,0.00052602,30]
[331265541,1720168349917,-500.0,0.00052602,30]
[331265542,1720168349955,-500.0,0.00052602,30]
[331265543,1720168349993,-500.0,0.00052602,30]
[331265544,1720168350034,-527.50095404,0.00052602,30]
[331265545,1720168350072,-200.0,0.000527,31]
[331265546,1720168350109,-200.0,0.000527,31]
[331265547,1720168350146,-151.0,0.00052822,120]
[331265548,1720168350184,-900.0,0.00052876,90]
[331265549,1720168350223,-867.44,0.0005315,120]
[331265550,1720168350260,-1010.46,0.0005326,67]
[331265551,1720168350296,-500.0,0.00053391,30]
[331265552,1720168350339,-900.0,0.00053424,90]
[331265553,1720168350378,-151.0,0.00053534,120]
[331265554,1720168350418,-867.44,0.00053698,120]
[331265555,1720168350455,-694.43032,0.000538,30]
[331265556,1720168350492,-617.15098656,0.00053972,90]
[331265557,1720168350528,-3499.12620776,0.00054,120]
[331265558,1720168350566,-500.0,0.00054192,30]
[331265559,1720168350602,-867.44,0.00054246,120]
[331265560,1720168350638,-151.0,0.00054247,120]
[331265561,1720168350676,-1861.307535,0.000544,76]
[331265562,1720168350714,-270.70956546,0.00054467,120]
[331265563,1720168350868,-1084.93590005,0.00054468,120]
[331265564,1720168350935,-337.08399599,0.00054469,120]
[331265565,1720168350974,-1287.99342152,0.0005447,120]
[331265566,1720168351011,-270.70956546,0.00054472,120]
[331265567,1720168351049,-1084.93590005,0.00054474,120]
[331265568,1720168351091,-564.30161146,0.00054476,120]
[331265569,1720168351129,-337.08399599,0.00054476,120]
[331265570,1720168351166,-337.08399599,0.00054477,120]
[331265571,1720168351205,-282.1055588,0.00054477,120]
[331265572,1720168351242,-564.30161146,0.00054478,120]
[331265573,1720168351280,-1287.99342152,0.00054479,120]
[331265574,1720168351317,-270.70956546,0.0005448,120]
[331265575,1720168351354,-564.30161146,0.0005448,120]
[331265576,1720168351394,-230.0230628,0.00054481,120]
[331265577,1720168351432,-1287.99342152,0.00054481,120]
[331265578,1720168351472,-564.30161146,0.00054482,120]
[331265579,1720168351515,-1084.93590005,0.00054483,120]
[331265580,1720168351559,-270.70956546,0.00054483,120]
[331265581,1720168351598,-282.1055588,0.00054484,120]
[331265582,1720168351636,-1084.93590005,0.00054485,120]
[331265583,1720168351673,-564.30161146,0.00054486,120]
[331265584,1720168351711,-1287.99342152,0.00054486,120]
[331265585,1720168351749,-564.30161146,0.00054486,120]
[331265586,1720168351785,-564.30161146,0.00054487,120]
[331265587,1720168351824,-337.08399599,0.00054489,120]
[331265588,1720168351863,-270.70956546,0.00054492,120]
[331265589,1720168351903,-282.1055588,0.00054496,120]
[331265590,1720168351941,-230.0230628,0.00054498,120]
[331265591,1720168351980,-282.1055588,0.00054499,120]
[331265592,1720168352020,-282.1055588,0.00054499,120]
[331265593,1720168352058,-270.70956546,0.000545,120]
[331265594,1720168352096,-1084.93590005,0.000545,120]
[331265595,1720168352132,-337.08399599,0.000545,120]
[331265596,1720168352171,-270.70956546,0.000545,120]
[331265597,1720168352208,-270.70956546,0.000545,120]
[331265598,1720168352246,-564.30161146,0.000545,120]
[331265599,1720168352284,-230.0230628,0.00054501,120]
[331265600,1720168352322,-337.08399599,0.00054501,120]
[331265601,1720168352359,-337.08399599,0.00054502,120]
[331265602,1720168352400,-1287.99342152,0.00054503,120]
[331265603,1720168352437,-1287.99342152,0.00054503,120]
[331265604,1720168352475,-230.0230628,0.00054504,120]
[331265605,1720168352511,-282.1055588,0.00054504,120]
[331265606,1720168352546,-282.1055588,0.00054505,120]
[331265607,1720168352584,-282.1055588,0.00054507,120]
[331265608,1720168352621,-282.1055588,0.00054507,120]
[331265609,1720168352659,-1084.93590005,0.00054507,120]
[331265610,1720168352696,-230.0230628,0.00054508,120]
[331265611,1720168352732,-270.70956546,0.0005451,120]
[331265612,1720168352769,-1084.93590005,0.00054512,120]
[331265613,1720168352808,-230.0230628,0.00054512,120]
[331265614,1720168352847,-1287.99342152,0.00054512,120]
[331265615,1720168352884,-230.0230628,0.00054513,120]
[331265616,1720168352922,-337.08399599,0.00054514,120]
[331265617,1720168352960,-564.30161146,0.00054514,120]
[331265618,1720168352999,-230.0230628,0.00054515,120]
[331265619,1720168353049,-230.0230628,0.00054516,120]
[331265620,1720168353090,-1084.93590005,0.00054516,120]
[331265621,1720168353129,-1287.99342152,0.00054517,120]
[331265622,1720168353168,-1084.93590005,0.00054517,120]
[331265623,1720168353206,-337.08399599,0.00054518,120]
[331265624,1720168353246,-1287.99342152,0.00054519,120]
[331265625,1720168353284,-5193.06162547,0.00054679,120]
[331265626,1720168353320,-154.026122,0.000547,79]
[331265627,1720168353357,-200.0,0.000547,33]
[331265628,1720168353398,-200.0,0.000547,33]
[331265629,1720168353438,-223.0,0.0005479,30]
[331265630,1720168353475,-231.0,0.0005479,30]
[331265631,1720168353511,-223.0,0.0005479,30]
[331265632,1720168353547,-229.0,0.0005479,30]
[331265633,1720168353586,-195.56371829,0.00054793,120]
[331265634,1720168353624,-131019.46730855,0.00054794,30]
[331265635,1720168353663,-500.0,0.00054794,120]
[331265636,1720168353699,-506.95730804,0.00054794,120]
[331265637,1720168353739,-500.0,0.00054794,120]
[331265638,1720168353779,-200.42350539,0.00054794,120]
[331265639,1720168353817,-500.0,0.00054794,120]
[331265640,1720168353861,-500.0,0.00054794,120]
[331265641,1720168353902,-500.0,0.00054794,120]
[331265642,1720168353948,-500.0,0.00054794,120]
[331265643,1720168353988,-500.0,0.00054794,120]
[331265644,1720168354028,-500.0,0.00054794,120]
[331265645,1720168354068,-500.0,0.00054794,120]
[331265646,1720168354108,-500.0,0.00054794,120]
[331265647,1720168354148,-500.0,0.00054794,120]
[331265648,1720168354189,-500.0,0.00054794,120]
[331265649,1720168354229,-500.0,0.00054794,120]
[331265650,1720168354267,-222.43526494,0.00054794,120]
[331265651,1720168354303,-500.0,0.00054794,120]
[331265652,1720168354341,-503.83024694,0.00054794,120]
[331265653,1720168354381,-500.0,0.00054794,120]
[331265654,1720168354419,-500.0,0.00054794,120]
[331265655,1720168354458,-500.0,0.00054794,120]
[331265656,1720168354496,-500.0,0.00054794,120]
[331265657,1720168354534,-500.0,0.00054794,120]
[331265658,1720168354571,-500.0,0.00054794,120]
[331265659,1720168354608,-445.71882543,0.00054794,120]
[331265660,1720168354648,-500.0,0.00054794,120]
[331265661,1720168354686,-500.0,0.00054794,120]
[331265662,1720168354724,-500.0,0.00054794,120]
[331265663,1720168354761,-500.0,0.00054794,120]
[331265664,1720168354798,-500.0,0.00054794,120]
[331265665,1720168354842,-500.0,0.00054794,120]
[331265666,1720168354881,-500.0,0.00054794,120]
[331265667,1720168355128,-500.0,0.00054794,120]
[331265668,1720168355171,-237.33201823,0.00054794,120]
[331265669,1720168355210,-500.0,0.00054794,120]
[331265670,1720168355249,-500.0,0.00054794,120]